bitfinex-derivatives/quotes_SOLF0:USTF0_20250928
["timestamp","ask_amount","ask_price","bid_price","bid_amount"]
[1759043711921,7.35,201.57,201.53,7.69]
[1759043712219,6.19520709,201.59,201.53,7.69]
[1759043712419,3.48818457,201.58,201.53,7.69]
[1759043712626,6.19520709,201.59,201.53,7.69]
[1759043712818,3.48818457,201.58,201.53,7.69]
[1759043713013,6.19520709,201.59,201.53,7.69]
[1759043713322,10.83818457,201.58,201.5,12.1541]
[1759043713520,7.35,201.56,201.5,12.1541]
[1759043713719,7.35,201.56,201.5,7.69]
[1759043714718,7.35,201.56,201.51,4.4639]
[1759043714925,1.73290709,201.58,201.51,4.4639]
[1759043715123,7.35,201.57,201.51,12.1539]
[1759043716325,1.73290709,201.58,201.51,12.1539]
[1759043716537,7.35,201.56,201.51,7.69]
[1759043716828,7.35,201.57,201.51,7.69]
[1759043718027,7.35,201.57,201.51,9.42290709]
[1759043720630,11.8128,201.57,201.51,7.69]
[1759043720824,1.73290709,201.56,201.5,4.4641]
[1759043721128,7.35,201.55,201.5,4.4641]
[1759043721827,6.19590709,201.56,201.5,4.4641]
[1759043722327,7.35,201.55,201.5,12.1541]
[1759043723027,6.19590709,201.56,201.5,4.4641]
[1759043724137,4.463,201.56,201.5,4.4641]
[1759043724322,4.463,201.56,201.51,7.5]
[1759043724635,8.0,201.56,201.51,4.4638]
[1759043724826,8.0,201.56,201.5,7.5]
[1759043725738,8.0,201.56,201.53,7.5]
[1759043726936,8.0,201.56,201.52,4.4636]
[1759043727138,8.0,201.56,201.53,7.5]
[1759043727534,8.0,201.58,201.5,7.5]
[1759043728336,8.0,201.58,201.52,7.5]
[1759043729744,8.0,201.58,201.52,11.9636]
[1759043731741,8.0,201.58,201.53,4.4634]
[1759043731936,6.19530709,201.59,201.53,4.4634]
[1759043732136,3.48782735,201.58,201.53,4.4634]
[1759043732333,8.0,201.58,201.53,11.9634]
[1759043732532,6.19530709,201.59,201.53,4.4634]
[1759043732734,8.0,201.57,201.54,7.5]
[1759043736147,8.0,201.57,201.53,4.4634]
[1759043736845,8.0,201.57,201.54,7.5]
[1759043737246,8.0,201.57,201.53,4.4634]
[1759043737448,8.0,201.57,201.54,7.5]
[1759043737749,8.0,201.57,201.53,4.4634]
[1759043738247,8.0,201.57,201.54,7.5]
[1759043739039,8.0,201.57,201.53,4.4634]
[1759043739248,8.0,201.57,201.54,7.5]
[1759043739447,8.0,201.57,201.53,4.4634]
[1759043739646,8.0,201.57,201.54,7.5]
[1759043739947,8.0,201.57,201.53,4.4634]
[1759043740148,8.0,201.57,201.54,7.5]
[1759043742652,8.0,201.57,201.54,4.4632]
[1759043742844,8.0,201.57,201.55,7.5]
[1759043744761,8.0,201.6,201.55,7.5]
[1759043744949,4.4619,201.61,201.54,4.4632]
[1759043745154,4.72177125,201.6,201.54,4.4632]
[1759043745354,8.0,201.6,201.55,7.5]
[1759043745852,8.0,201.6,201.54,4.4632]
[1759043746050,8.0,201.6,201.54,11.9632]
[1759043748151,3.48343128,201.59,201.54,4.4632]
[1759043748358,8.0,201.6,201.54,11.9632]
[1759043748553,3.48343128,201.59,201.54,4.4632]
[1759043748749,8.0,201.58,201.55,7.5]
[1759043748953,8.0,201.58,201.54,4.4632]
[1759043749149,8.0,201.58,201.55,7.5]
[1759043749554,8.0,201.58,201.54,4.4632]
[1759043749756,12.4619,201.61,201.55,7.5]
[1759043749951,4.72411244,201.6,201.5,69.444]
[1759043750149,8.0,201.62,201.53,7.5]
[1759043750463,4.72421698,201.61,201.53,7.5]
[1759043750664,8.0,201.62,201.53,7.5]
[1759043750960,4.72421638,201.61,201.53,7.5]
[1759043751254,8.0,201.62,201.53,7.5]
[1759043751459,4.72447196,201.61,201.53,7.5]
[1759043751756,8.0,201.63,201.57,11.9626]
[1759043751953,8.0,201.61,201.57,4.4626]
[1759043752552,8.0,201.61,201.58,7.5]
[1759043752758,8.0,201.61,201.57,4.4626]
[1759043752959,8.0,201.61,201.58,7.5]
[1759043753351,8.0,201.61,201.58,7.65]
[1759043753552,8.0,201.61,201.57,4.4626]
[1759043754163,8.0,201.61,201.58,7.65]
[1759043754351,4.4613,201.64,201.58,7.65]
[1759043754550,4.72328014,201.63,201.58,7.65]
[1759043754753,4.72328014,201.62,201.58,7.65]
[1759043755061,7.88,201.6,201.58,7.65]
[1759043768869,4.4615,201.63,201.53,2.70670116]
[1759043769170,4.71092525,201.62,201.53,127.59]
[1759043769370,7.88,201.6,201.49,2.70670116]
[1759043769669,7.41762641,201.61,201.49,2.70670116]
[1759043769670,7.88,201.58,201.5,7.65]
[1759043770561,12.3427,201.58,201.51,4.4639]
[1759043770761,12.3427,201.58,201.52,7.97]
[1759043770960,7.88,201.58,201.52,7.97]
[1759043771168,8.0,201.61,201.55,7.97]
[1759043771371,12.71266342,201.6,201.55,7.97]
[1759043771666,11.47283266,201.59,201.54,4.4632]
[1759043771968,8.0,201.59,201.55,7.97]
[1759043772169,8.0,201.59,201.54,4.4632]
[1759043772360,8.0,201.59,201.55,7.97]
[1759043772563,4.4619,201.61,201.54,4.4632]
[1759043772564,8.0,201.6,201.54,12.4332]
[1759043772763,8.0,201.58,201.54,4.4632]
[1759043773170,8.0,201.58,201.55,7.97]
[1759043773368,8.0,201.59,201.52,15.14050116]
[1759043773671,8.0,201.58,201.52,15.14050116]
[1759043773872,8.0,201.58,201.52,12.4338]
[1759043774467,8.0,201.61,201.52,7.97]
[1759043774672,8.0,201.59,201.52,7.97]
[1759043775373,4.4626,201.58,201.52,7.97]
[1759043775575,12.4626,201.58,201.52,7.97]
[1759043777678,8.0,201.58,201.52,7.97]
[1759043778592,8.0,201.58,201.54,4.4632]
[1759043778778,8.0,201.58,201.55,7.97]
[1759043781286,8.0,201.58,201.54,4.4632]
[1759043781684,8.0,201.58,201.55,7.97]
[1759043781984,8.0,201.58,201.54,4.4632]
[1759043782280,8.0,201.58,201.55,7.97]
[1759043782481,8.0,201.61,201.55,7.97]
[1759043782785,4.71446958,201.6,201.55,7.97]
[1759043782985,8.0,201.61,201.55,7.97]
[1759043783186,4.71446943,201.6,201.55,7.97]
[1759043783388,8.0,201.61,201.52,72.14370116]
[1759043783587,8.0,201.61,201.53,7.95]
[1759043783974,8.0,201.61,201.57,4.4625]
[1759043784175,8.0,201.61,201.54,7.95]
[1759043784381,8.0,201.61,201.56,7.95]
[1759043784581,8.0,201.61,201.55,2.70670116]
[1759043785485,8.0,201.61,201.56,7.95]
[1759043785680,8.0,201.61,201.59,7.95]
[1759043787889,7.95,201.65,201.59,4.4621]
[1759043788089,4.71364798,201.64,201.6,7.95]
[1759043788390,12.4108,201.66,201.6,7.95]
[1759043788590,7.95,201.64,201.59,4.4621]
[1759043788891,7.95,201.65,201.59,12.4121]
[1759043789085,7.95,201.63,201.6,7.95]
[1759043789287,4.4608,201.66,201.6,7.95]
[1759043789492,7.95,201.64,201.6,7.95]
[1759043789789,4.4608,201.66,201.6,7.95]
[1759043789990,7.95,201.64,201.6,7.95]
[1759043790192,4.4608,201.66,201.6,7.95]
[1759043790386,4.71233117,201.65,201.6,7.95]
[1759043790592,7.95,201.63,201.6,7.95]
[1759043791487,102.71,201.67,201.59,7.95]
[1759043791694,4.71128851,201.66,201.59,7.95]
[1759043791887,7.95,201.67,201.59,7.95]
[1759043792082,4.71128791,201.66,201.59,7.95]
[1759043792289,7.95,201.67,201.59,7.95]
[1759043792586,7.95,201.67,201.61,4.4616]
[1759043792587,4.71049274,201.66,201.61,4.4616]
[1759043792793,7.95,201.67,201.61,4.4616]
[1759043792986,7.95,201.66,201.61,4.4616]
[1759043793798,7.95,201.69,201.63,7.95]
[1759043794092,4.70875316,201.68,201.62,7.95]
[1759043794286,7.95,201.7,201.64,10.65670116]
[1759043794588,7.95,201.73,201.65,7.95]
[1759043794794,4.70995714,201.72,201.68,7.95]
[1759043794987,7.95,201.73,201.68,7.95]
[1759043795190,4.70932202,201.72,201.69,7.95]
[1759043795388,7.95,201.75,201.69,7.95]
[1759043795594,12.6569873,201.74,201.69,7.95]
[1759043795794,12.6569873,201.73,201.68,4.4601]
[1759043795984,3.46787823,201.72,201.68,19.65925979]
[1759043796187,7.95,201.73,201.69,7.95]
[1759043796583,7.95,201.73,201.68,4.4601]
[1759043796794,7.95,201.76,201.69,12.4098]
[1759043797092,4.70508251,201.75,201.69,12.4098]
[1759043797292,4.70508251,201.74,201.7,7.95]
[1759043797490,7.95,201.76,201.7,7.95]
[1759043797690,3.46402916,201.75,201.69,4.4598]
[1759043797895,7.95,201.77,201.7,7.95]
[1759043802695,7.95,201.77,201.7,9.67920422]
[1759043809099,12.4084,201.77,201.7,9.67920422]
[1759043811203,7.95,201.77,201.7,9.67920422]
[1759043812203,368.93,201.86,201.75,7.95]
[1759043812508,7.95,201.82,201.75,7.95]
[1759043813102,7.95,201.82,201.76,1.72920422]
[1759043819408,12.4073,201.82,201.76,1.72920422]
[1759043820506,4.4575,201.81,201.76,1.72920422]
[1759043820710,4.4575,201.81,201.75,7.95]
[1759043820711,7.46,201.8,201.75,7.95]
[1759043820906,4.4575,201.81,201.75,7.95]
[1759043821213,4.4575,201.81,201.74,1.72920422]
[1759043821214,7.46,201.8,201.74,9.54920422]
[1759043822814,7.46,201.8,201.74,6.18790422]
[1759043823016,11.917,201.83,201.77,7.82]
[1759043826813,11.917,201.83,201.71,69.3718]
[1759043826814,7.46,201.83,201.78,1.72920422]
[1759043827313,7.46,201.83,201.79,7.82]
[1759043827611,7.46,201.83,201.78,6.18710422]
[1759043828913,7.46,201.83,201.79,7.82]
[1759043829720,7.46,201.83,201.78,6.18710422]
[1759043829913,7.46,201.83,201.79,7.58]
[1759043830216,4.4565,201.85,201.79,7.58]
[1759043831117,7.39,201.84,201.79,7.58]
[1759043831312,4.4565,201.85,201.79,7.58]
[1759043831513,7.39,201.84,201.79,7.58]
[1759043832516,4.4565,201.85,201.79,7.58]
[1759043832717,7.39,201.84,201.79,7.58]
[1759043832918,4.4565,201.85,201.78,6.18710422]
[1759043833122,7.39,201.84,201.78,13.76710422]
[1759043835020,7.39,201.84,201.79,7.58]
[1759043835324,7.39,201.84,201.78,6.18710422]
[1759043836719,7.39,201.84,201.79,7.58]
[1759043837225,11.8465,201.85,201.79,7.58]
[1759043838727,11.8465,201.85,201.79,9.30920422]
[1759043839220,4.4565,201.85,201.79,9.30920422]
[1759043839419,7.39,201.84,201.79,9.30920422]
[1759043840028,11.8468,201.84,201.77,1.72920422]
[1759043843120,11.8468,201.84,201.77,6.18730422]
[1759043844027,4.457,201.83,201.77,6.18730422]
[1759043845821,7.94,201.82,201.77,6.18730422]
[1759043846124,4.457,201.83,201.77,6.18730422]
[1759043846430,7.94,201.82,201.77,6.18730422]
[1759043847020,4.457,201.83,201.77,6.18730422]
[1759043847220,7.94,201.82,201.77,13.84730422]
[1759043847420,4.457,201.83,201.77,6.18730422]
[1759043847924,7.94,201.82,201.77,6.18730422]
[1759043848125,4.457,201.83,201.78,7.66]
[1759043848326,7.94,201.82,201.78,7.66]
[1759043848533,7.94,201.82,201.76,1.72920422]
[1759043851839,7.94,201.82,201.77,7.66]
[1759043852035,7.94,201.82,201.74,7.66]
[1759043852337,7.94,201.82,201.74,9.38920422]
[1759043852531,7.94,201.8,201.74,9.38920422]
[1759043853542,12.3977,201.8,201.74,9.38920422]
[1759043860643,4.4579,201.79,201.74,9.38920422]
[1759043861045,7.94,201.78,201.74,9.38920422]
[1759043861243,4.4579,201.79,201.74,9.38920422]
[1759043861244,4.4579,201.79,201.74,7.66]
[1759043861444,7.94,201.78,201.74,7.66]
[1759043861738,4.4579,201.79,201.74,7.66]
[1759043862143,7.94,201.78,201.74,7.66]
[1759043862646,4.4579,201.79,201.74,7.66]
[1759043862842,7.94,201.78,201.74,7.66]
[1759043863144,4.4579,201.79,201.74,7.66]
[1759043863446,7.94,201.78,201.74,7.66]
[1759043864146,4.4579,201.79,201.74,7.66]
[1759043864749,7.94,201.78,201.74,7.66]
[1759043865044,4.4579,201.79,201.72,4.4592]
[1759043865449,7.94,201.78,201.73,7.66]
[1759043865851,4.4579,201.79,201.72,4.4592]
[1759043866246,7.94,201.78,201.73,7.66]
[1759043866647,4.4579,201.79,201.72,4.4592]
[1759043867148,4.4579,201.79,201.73,7.66]
[1759043867149,7.94,201.78,201.73,7.66]
[1759043867651,4.4579,201.79,201.72,4.4592]
[1759043868153,7.94,201.78,201.73,7.66]
[1759043868554,4.4579,201.79,201.72,4.4592]
[1759043868746,7.94,201.78,201.73,7.66]
[1759043869046,4.4579,201.79,201.72,4.4592]
[1759043869446,7.94,201.82,201.74,10.36122475]
[1759043869648,3.47036326,201.81,201.75,7.66]
[1759043869848,7.94,201.82,201.76,2.70122475]
[1759043870054,3.47036065,201.81,201.76,2.70122475]
[1759043870251,7.94,201.82,201.76,2.70122475]
[1759043870450,3.47029469,201.81,201.76,2.70122475]
[1759043870652,4.457,201.83,201.76,7.15952475]
[1759043870948,3.47029407,201.82,201.77,7.66]
[1759043871256,11.41029407,201.81,201.77,7.66]
[1759043871449,7.94,201.81,201.77,7.66]
[1759043871954,7.94,201.81,201.76,7.15952475]
[1759043872155,7.94,201.81,201.77,7.66]
[1759043872556,7.94,201.81,201.76,7.15952475]
[1759043873056,7.94,201.81,201.77,7.66]
[1759043873252,7.94,201.81,201.76,7.15952475]
[1759043873449,7.94,201.81,201.77,7.51]
[1759043875050,4.4573,201.82,201.76,7.15952475]
[1759043875352,11.32084335,201.81,201.76,7.15952475]
[1759043875556,7.85,201.81,201.77,7.51]
[1759043876258,7.85,201.81,201.76,7.15952475]
[1759043876456,7.85,201.81,201.77,7.51]
[1759043876956,7.85,201.81,201.76,7.15952475]
[1759043877354,7.85,201.81,201.77,7.51]
[1759043877550,4.4573,201.82,201.77,7.51]
[1759043877752,7.85,201.8,201.77,7.51]
[1759043877952,7.85,201.8,201.74,4.4588]
[1759043877953,7.85,201.8,201.75,7.51]
[1759043878149,7.85,201.8,201.76,7.51]
[1759043878456,7.85,201.8,201.75,4.4586]
[1759043878957,7.85,201.8,201.76,7.51]
[1759043879155,7.85,201.8,201.75,4.4586]
[1759043879457,4.4573,201.82,201.75,4.4586]
[1759043879657,11.32168883,201.81,201.75,11.9686]
[1759043879958,4.4573,201.82,201.75,4.4586]
[1759043880154,3.47168759,201.81,201.76,7.51]
[1759043880355,4.4573,201.82,201.75,4.4586]
[1759043880658,7.85,201.8,201.75,4.4586]
[1759043881158,7.85,201.8,201.73,7.16022475]
[1759043881359,7.85,201.8,201.73,14.67022475]
[1759043881662,7.85,201.79,201.73,14.67022475]
[1759043882358,7.85,201.81,201.74,11.9688]
[1759043882559,3.47287304,201.8,201.74,7.51]
[1759043882752,7.85,201.81,201.74,7.51]
[1759043883563,7.85,201.81,201.76,4.4584]
[1759043884652,7.85,201.81,201.77,7.51]
[1759043884857,7.85,201.81,201.76,4.4584]
[1759043885058,7.85,201.81,201.77,7.51]
[1759043885260,7.85,201.81,201.76,4.4584]
[1759043885563,7.85,201.81,201.77,7.51]
[1759043885763,7.85,201.81,201.76,4.4584]
[1759043885964,7.85,201.81,201.77,7.51]
[1759043886359,7.85,201.81,201.76,4.4584]
[1759043886564,7.85,201.83,201.77,7.51]
[1759043888260,3.47023147,201.82,201.77,7.51]
[1759043888565,7.85,201.82,201.76,11.9684]
[1759043888967,3.47043926,201.81,201.76,7.51]
[1759043889266,7.85,201.82,201.76,7.51]
[1759043890261,7.86,201.8,201.76,7.51]
[1759043890456,7.86,201.82,201.76,7.51]
[1759043890663,3.47062729,201.81,201.74,4.4588]
[1759043890863,7.86,201.82,201.75,7.89]
[1759043891073,3.47062729,201.81,201.75,7.89]
[1759043891368,7.86,201.82,201.75,7.89]
[1759043891568,3.47075328,201.81,201.75,7.89]
[1759043891770,7.86,201.82,201.75,7.89]
[1759043892072,3.47075328,201.81,201.75,12.3486]
[1759043892264,7.86,201.82,201.75,12.3486]
[1759043892459,3.47088299,201.81,201.75,12.3486]
[1759043892668,7.86,201.82,201.75,12.3486]
[1759043892869,3.47088299,201.81,201.76,7.89]
[1759043893065,7.86,201.82,201.76,7.89]
[1759043893269,3.4710024,201.81,201.75,4.4586]
[1759043893470,7.86,201.82,201.76,7.89]
[1759043893670,3.47101816,201.81,201.75,4.4586]
[1759043893872,7.86,201.82,201.76,7.89]
[1759043894072,3.47101816,201.81,201.76,7.89]
[1759043894274,7.86,201.82,201.76,7.89]
[1759043894572,3.47101975,201.81,201.76,7.89]
[1759043894771,7.86,201.82,201.76,7.89]
[1759043894969,3.47102038,201.81,201.75,4.4586]
[1759043895168,7.86,201.82,201.76,7.89]
[1759043895369,3.47102233,201.81,201.76,7.89]
[1759043895674,7.86,201.82,201.76,7.89]
[1759043895971,3.4710217,201.81,201.76,7.89]
[1759043896274,7.86,201.82,201.76,7.89]
[1759043896474,3.4710233,201.81,201.76,7.89]
[1759043896675,7.86,201.82,201.76,7.89]
[1759043896975,3.4710233,201.81,201.76,7.89]
[1759043897175,7.86,201.82,201.76,7.89]
[1759043897371,3.47099081,201.81,201.76,7.89]
[1759043897573,7.86,201.82,201.76,7.89]
[1759043897873,3.47099081,201.81,201.76,7.89]
[1759043898173,7.86,201.8,201.75,4.4586]
[1759043898874,7.86,201.8,201.76,7.89]
[1759043900074,7.86,201.8,201.75,4.4586]
[1759043900277,7.86,201.8,201.76,7.89]
[1759043900769,7.86,201.8,201.76,4.4583]
[1759043900974,7.86,201.8,201.77,7.89]
[1759043902774,7.86,201.82,201.77,7.89]
[1759043903075,7.86,201.8,201.77,7.89]
[1759043903267,7.86,201.8,201.77,7.99]
[1759043906284,7.86,201.8,201.76,4.4583]
[1759043906575,7.86,201.8,201.77,7.99]
[1759043906981,7.86,201.8,201.76,4.4583]
[1759043907880,7.86,201.8,201.78,7.99]
[1759043908180,7.86,201.8,201.77,4.4581]
[1759043908376,12.0771,201.83,201.78,7.99]
[1759043908583,7.62,201.81,201.78,7.99]
[1759043909079,7.62,201.82,201.78,7.99]
[1759043909282,4.4571,201.83,201.78,7.99]
[1759043909481,7.62,201.81,201.78,7.99]
[1759043909682,7.62,201.82,201.78,7.99]
[1759043909877,7.62,201.82,201.77,4.4581]
[1759043910083,4.4571,201.83,201.78,7.99]
[1759043910378,3.47133499,201.82,201.78,7.99]
[1759043910582,7.62,201.81,201.78,7.99]
[1759043910782,4.4571,201.83,201.78,7.99]
[1759043910982,7.62,201.81,201.78,7.99]
[1759043911288,7.62,201.82,201.78,7.99]
[1759043911481,4.4571,201.83,201.78,7.99]
[1759043911684,7.62,201.81,201.78,7.99]
[1759043911886,4.4571,201.83,201.78,7.99]
[1759043912086,7.62,201.81,201.78,7.99]
[1759043913488,4.4571,201.83,201.78,7.99]
[1759043913680,7.62,201.81,201.78,7.99]
[1759043914686,7.62,201.82,201.77,4.4581]
[1759043915287,7.62,201.82,201.78,7.99]
[1759043915484,7.62,201.82,201.77,4.4581]
[1759043915686,4.4566,201.85,201.75,10.69122475]
[1759043915885,3.46771611,201.84,201.76,7.99]
[1759043916089,7.62,201.85,201.76,7.99]
[1759043916293,3.46738163,201.84,201.76,7.99]
[1759043916593,7.62,201.85,201.76,7.99]
[1759043916790,3.46674048,201.84,201.76,7.99]
[1759043917095,7.62,201.85,201.76,7.99]
[1759043917588,7.62,201.85,201.75,2.70122475]
[1759043917589,7.62,201.85,201.81,7.99]
[1759043917789,7.62,201.85,201.8,4.4574]
[1759043917990,7.62,201.86,201.81,7.99]
[1759043918190,7.62,201.84,201.81,7.99]
[1759043918392,7.62,201.84,201.8,4.4574]
[1759043918597,7.62,201.84,201.81,7.99]
[1759043921696,4.4561,201.87,201.81,7.99]
[1759043921994,3.44928916,201.86,201.81,7.99]
[1759043922198,7.62,201.86,201.8,12.4474]
[1759043930801,6.18367527,201.87,201.81,4.4572]
[1759043931000,7.62,201.85,201.82,7.99]
[1759043931704,7.62,201.85,201.81,4.4572]
[1759043933808,7.62,201.85,201.82,8.09]
[1759043934001,7.62,201.85,201.81,4.4572]
[1759043934603,6.18367527,201.87,201.82,8.09]
[1759043934907,7.49,201.85,201.81,4.4572]
[1759043935303,7.49,201.85,201.82,8.09]
[1759043936609,6.18367527,201.87,201.82,8.09]
[1759043936803,3.44758094,201.86,201.82,8.09]
[1759043937003,7.49,201.86,201.82,8.09]
[1759043937709,4.4561,201.87,201.82,8.09]
[1759043937909,3.44757903,201.86,201.82,8.09]
[1759043938112,4.4561,201.87,201.82,8.09]
[1759043938310,3.44759792,201.86,201.82,8.09]
[1759043938610,7.49,201.85,201.82,8.09]
[1759043939811,11.9461,201.87,201.81,4.4572]
[1759043940012,3.44763596,201.86,201.81,4.4572]
[1759043940212,11.9461,201.87,201.81,6.18477527]
[1759043940414,3.44768099,201.86,201.82,8.09]
[1759043940614,4.4561,201.87,201.82,8.09]
[1759043940813,10.93768075,201.86,201.81,6.18477527]
[1759043941013,7.49,201.86,201.81,6.18477527]
[1759043941206,7.49,201.86,201.82,8.09]
[1759043941715,7.49,201.86,201.81,6.18477527]
[1759043942616,7.49,201.86,201.82,8.09]
[1759043942810,7.49,201.86,201.83,8.09]
[1759043943214,7.49,201.86,201.82,4.457]
[1759043943917,7.49,201.86,201.83,8.09]
[1759043944517,7.49,201.86,201.82,4.457]
[1759043944709,7.49,201.86,201.83,8.09]
[1759043944905,7.49,201.86,201.82,4.457]
[1759043945118,7.49,201.9,201.84,8.09]
[1759043945314,7.49,201.88,201.83,1.72757527]
[1759043946116,7.49,201.9,201.84,8.09]
[1759043946415,3.44399113,201.89,201.84,8.09]
[1759043946617,4.4552,201.91,201.84,12.5466]
[1759043946915,7.49,201.89,201.84,12.5466]
[1759043947115,7.49,201.9,201.84,12.5466]
[1759043947415,7.49,201.88,201.84,12.5466]
[1759043947613,7.49,201.9,201.84,12.5466]
[1759043947912,7.49,201.88,201.84,12.5466]
[1759043948116,4.4552,201.91,201.84,12.5466]
[1759043948316,3.44373182,201.9,201.84,4.4566]
[1759043948512,7.49,201.88,201.85,8.09]
[1759043948818,3.44373182,201.89,201.85,8.09]
[1759043948819,1.72757527,201.9,201.85,8.09]
[1759043949016,3.44369292,201.89,201.85,8.09]
[1759043949213,1.72757527,201.9,201.85,8.09]
[1759043949412,7.49,201.88,201.85,8.09]
[1759043949614,7.49,201.89,201.85,8.09]
[1759043949816,1.72757527,201.9,201.85,8.09]
[1759043950115,3.44355784,201.89,201.85,8.09]
[1759043950311,7.84,201.89,201.85,8.09]
[1759043951815,1.72757527,201.9,201.85,8.09]
[1759043952017,7.84,201.88,201.85,8.09]
[1759043953014,7.84,201.88,201.84,4.4566]
[1759043953622,7.84,201.88,201.85,7.55]
[1759043953824,7.84,201.88,201.84,4.4566]
[1759043954216,7.84,201.88,201.85,7.55]
[1759043954418,7.84,201.88,201.84,4.4566]
[1759043955017,7.84,201.88,201.85,7.55]
[1759043955423,7.84,201.88,201.84,4.4566]
[1759043955823,7.84,201.88,201.85,7.55]
[1759043956022,7.84,201.88,201.84,4.4566]
[1759043956223,7.84,201.88,201.85,7.55]
[1759043956624,7.84,201.88,201.84,4.4566]
[1759043956924,7.84,201.89,201.85,7.55]
[1759043957424,1.72757527,201.9,201.85,7.55]
[1759043957619,7.84,201.88,201.85,7.55]
[1759043957923,1.72757527,201.9,201.85,7.55]
[1759043958224,7.84,201.88,201.85,7.55]
[1759043958422,7.84,201.89,201.85,7.55]
[1759043958625,4.4557,201.89,201.85,7.55]
[1759043958825,7.84,201.94,201.84,7.55]
[1759043959028,3.44485477,201.93,201.87,7.55]
[1759043959223,7.84,201.94,201.87,7.55]
[1759043959526,7.84,201.92,201.89,7.55]
[1759043959715,9.56757527,201.95,201.89,7.55]
[1759043960025,11.28305689,201.94,201.92,7.55]
[1759043960213,7.84,201.94,201.91,7.55]
[1759043961822,7.84,201.94,201.91,14.48983982]
[1759043962127,7.84,201.97,201.91,7.55]
[1759043963520,7.84,201.97,201.91,9.27757527]
[1759043964023,12.294,201.97,201.91,7.55]
[1759043966632,12.294,201.97,201.91,22.30711678]
[1759043969824,387.2411,202.1,201.95,8.09]
[1759043969825,7.99,202.04,201.95,8.09]
[1759043970021,7.99,202.01,201.95,8.09]
[1759043970622,12.443,202.01,201.95,8.09]
[1759043974335,7.99,202.0,201.96,9.81757527]
[1759043974834,4.453,202.01,201.96,9.81757527]
[1759043975334,7.99,202.0,201.96,9.81757527]
[1759043975626,4.453,202.01,201.96,9.81757527]
[1759043976130,7.99,202.0,201.96,9.81757527]
[1759043976326,4.453,202.01,201.96,9.81757527]
[1759043976530,4.453,202.01,201.96,1.72757527]
[1759043976729,7.99,202.0,201.97,8.09]
[1759043977934,4.453,202.01,201.97,8.09]
[1759043978632,7.99,202.0,201.97,8.09]
[1759043979236,4.453,202.01,201.97,8.09]
[1759043979436,7.99,202.0,201.97,8.09]
[1759043980140,7.99,202.0,201.96,1.72757527]
[1759043980434,7.99,202.0,201.97,8.09]
[1759043981739,7.99,202.0,201.94,1.72757527]